bitfinex-derivatives/quotes_ETHF0:USTF0_20260118
["timestamp","ask_amount","ask_price","bid_price","bid_amount"]
[1768780524004,0.99334728,3288.7,3287.6,2.73001184]
[1768780524209,0.00278001,3288.8,3287.9,2.73001184]
[1768780524408,0.15209,3288.6,3287.4,2.73001184]
[1768780524710,0.15211,3288.1,3286.3,0.15279765]
[1768780525007,0.99310594,3288.0,3286.4,40.8]
[1768780525212,0.99304567,3287.9,3286.7,2.73001184]
[1768780525403,0.15211,3288.1,3286.8,2.73001184]
[1768780525609,0.99311595,3288.0,3286.8,2.73001184]
[1768780525911,0.99311595,3287.9,3287.0,2.73001184]
[1768780526106,0.78975864,3288.3,3286.8,2.73001184]
[1768780526309,0.99340433,3288.2,3286.8,0.15279765]
[1768780526510,0.79253865,3288.8,3287.8,2.73001184]
[1768780526705,0.9936104,3288.7,3287.3,2.73001184]
[1768780526910,0.9936104,3288.6,3287.3,2.73001184]
[1768780527207,0.9936104,3288.5,3287.5,2.73001184]
[1768780527412,0.00278001,3288.8,3287.4,2.73001184]
[1768780527602,0.00278001,3288.8,3287.7,2.73001184]
[1768780527603,0.99385584,3288.7,3287.7,2.73001184]
[1768780527803,0.99385584,3288.6,3287.5,2.73001184]
[1768780528003,0.99385584,3288.5,3287.5,2.73001184]
[1768780528306,0.00278001,3288.8,3288.0,2.73001184]
[1768780528612,0.99404413,3288.7,3288.0,0.00239643]
[1768780528810,0.00278001,3288.8,3288.6,2.73001184]
[1768780529010,0.78975864,3289.2,3288.6,2.73001184]
[1768780529205,0.78975864,3289.2,3288.7,2.73001184]
[1768780529514,0.99422219,3289.1,3288.5,2.73001184]
[1768780529719,0.79583864,3289.4,3288.4,2.73001184]
[1768780529909,0.79856518,3289.4,3288.6,2.73001184]
[1768780530115,0.99445576,3289.3,3288.8,2.72781839]
[1768780530317,0.99445576,3289.2,3288.6,2.72781839]
[1768780530511,0.99445576,3289.1,3288.0,2.73021482]
[1768780530817,0.99445576,3289.0,3288.0,2.73021482]
[1768780531017,0.99445576,3288.9,3288.0,0.00239643]
[1768780531213,0.99445576,3288.8,3288.1,2.72781839]
[1768780531415,0.99445576,3288.7,3288.2,2.72781839]
[1768780531619,0.78975864,3289.0,3288.5,2.72781839]
[1768780531813,0.78975864,3289.0,3288.3,2.72781839]
[1768780532315,0.78975864,3288.9,3288.0,0.00239643]
[1768780532519,0.78975864,3288.7,3288.0,0.00239643]
[1768780532914,0.84230658,3288.6,3288.0,0.00239643]
[1768780533111,0.78975864,3289.0,3288.0,0.00239643]
[1768780533315,0.78975864,3289.3,3288.0,0.00239643]
[1768780533716,0.15013863,3289.1,3288.0,0.00239643]
[1768780534319,0.15013863,3288.9,3288.0,0.00239643]
[1768780534515,0.15013863,3288.7,3288.0,0.00239643]
[1768780534723,0.93989727,3288.5,3286.3,0.15219]
[1768780534914,0.93989727,3288.5,3286.4,46.607]
[1768780535116,0.15013863,3288.4,3286.4,46.607]
[1768780535612,0.15013863,3288.4,3286.4,46.60917339]
[1768780536516,0.13818963,3288.4,3286.4,46.60917339]
[1768780536823,0.13818963,3288.4,3286.5,0.15218]
[1768780537230,0.13818963,3288.4,3286.6,5.812]
[1768780539030,0.13818963,3288.4,3286.5,0.15218]
[1768780539423,0.13818963,3288.4,3286.6,5.817]
[1768780540227,1.06048523,3289.0,3287.0,0.15216]
[1768780540228,0.14313413,3289.0,3287.0,0.15216]
[1768780540820,0.14313413,3289.0,3287.1,2.777]
[1768780541135,0.14313413,3289.0,3287.2,2.777]
[1768780541334,0.14313413,3289.0,3286.6,0.15218]
[1768780541631,0.14313413,3289.0,3286.7,5.82]
[1768780541820,0.14313413,3289.0,3286.8,0.15217]
[1768780542026,0.14313413,3289.0,3286.8,0.01533325]
[1768780542827,0.14313413,3289.0,3287.0,0.15216]
[1768780543030,0.78975864,3289.3,3286.9,1.42193825]
[1768780543224,0.00880654,3289.4,3287.0,0.01542961]
[1768780543425,0.00880654,3289.4,3287.6,0.15213]
[1768780543626,0.00880654,3289.4,3287.7,40.8]
[1768780545429,0.00880654,3289.4,3287.8,5.821]
[1768780547043,0.00880654,3289.4,3287.9,5.825]
[1768780547929,0.00880654,3289.4,3287.7,40.8]
[1768780548240,0.00880654,3289.4,3288.0,2.784]
[1768780548439,0.00880654,3289.4,3287.7,40.8]
[1768780548627,0.14313413,3289.2,3287.0,0.15216]
[1768780548834,0.14313413,3289.0,3287.1,3.042]
[1768780549143,0.14313413,3288.8,3287.2,2.786]
[1768780549442,0.99208227,3288.7,3287.3,2.785]
[1768780550144,0.14313413,3288.5,3286.6,3.042]
[1768780550343,0.14313413,3288.3,3286.7,2.787]
[1768780550637,0.14313413,3288.3,3286.7,43.587]
[1768780551134,0.14313413,3288.3,3286.7,40.8]
[1768780551338,0.99458954,3288.2,3286.7,40.8]
[1768780551642,0.14313413,3288.3,3286.8,2.788]
[1768780551839,0.99482616,3288.2,3286.8,2.788]
[1768780552137,0.14313413,3288.0,3286.4,0.00217339]
[1768780552338,0.99490364,3288.1,3286.4,0.00217339]
[1768780552339,0.14313413,3287.8,3286.4,0.00217339]
[1768780552543,0.13517673,3287.7,3286.5,2.79]
[1768780552745,0.13517673,3287.7,3286.4,0.00217339]
[1768780552746,0.99526048,3287.6,3286.4,0.00217339]
[1768780552940,0.99526048,3287.5,3286.5,2.79]
[1768780553147,0.99535719,3287.4,3286.5,2.79]
[1768780553346,0.13517673,3287.7,3286.5,2.79]
[1768780553644,0.99508264,3287.6,3286.5,2.79]
[1768780553836,0.99508264,3287.5,3286.5,2.79]
[1768780554038,0.13517673,3287.7,3286.5,2.79]
[1768780554237,0.99503328,3287.6,3286.5,2.79]
[1768780554433,0.99503328,3287.5,3286.5,2.79]
[1768780554648,0.13517673,3287.7,3286.5,2.79]
[1768780554837,0.9947519,3287.6,3286.5,2.793]
[1768780555039,0.9947519,3287.5,3286.4,0.00217339]
[1768780555238,0.13517673,3287.6,3286.5,2.793]
[1768780555444,0.99473335,3287.5,3286.5,2.793]
[1768780555638,0.13517673,3287.6,3286.4,2.79617339]
[1768780555845,0.99472712,3287.5,3286.4,2.79617339]
[1768780556033,0.13517673,3287.6,3286.4,2.79617339]
[1768780556034,0.13517673,3287.6,3286.4,0.00217339]
[1768780556238,0.13517673,3287.4,3286.4,0.00217339]
[1768780558438,0.13517673,3286.9,3283.9,0.01827512]
[1768780558640,0.13517673,3286.7,3284.8,2.797]
[1768780559548,0.00343685,3286.7,3285.4,0.00856495]
[1768780560042,0.00343685,3286.7,3285.5,2.796]
[1768780560943,0.00343685,3286.7,3285.4,0.00856495]
[1768780561239,0.13861358,3286.7,3285.4,0.00856495]
[1768780561642,0.13517673,3286.3,3285.4,0.00856495]
[1768780561846,0.13517673,3286.1,3285.4,0.00856495]
[1768780565048,0.13517673,3286.1,3284.0,0.1523]
[1768780565242,0.13517673,3286.1,3284.1,2.794]
[1768780565543,0.13517673,3286.1,3283.5,40.95232]
[1768780565749,0.28738673,3286.0,3283.6,5.837]
[1768780565949,0.13517673,3285.9,3283.6,5.837]
[1768780566145,0.13517673,3285.9,3283.6,0.00337312]
[1768780566541,0.13517673,3285.9,3283.7,5.839]
[1768780566846,0.13517673,3285.6,3283.8,2.796]
[1768780567048,0.13517673,3285.6,3283.6,0.00337312]
[1768780567250,0.13517673,3285.6,3283.7,2.797]
[1768780567645,0.78975864,3286.4,3283.6,0.00337312]
[1768780567646,0.13517673,3285.4,3283.6,0.00337312]
[1768780567846,0.13517673,3284.8,3283.6,0.00337312]
[1768780568546,1.06048523,3286.0,3283.6,0.00337312]
[1768780568547,0.13517673,3284.6,3283.6,0.00337312]
[1768780568753,0.12919873,3284.6,3283.6,0.00337312]
[1768780569947,0.12919873,3284.6,3282.1,0.696]
[1768780570447,0.28147873,3284.6,3282.1,0.696]
[1768780570653,0.15228,3284.5,3282.1,5.842]
[1768780570848,0.13517673,3284.4,3282.1,2.80017116]
[1768780571056,0.13517673,3283.3,3282.1,0.00217116]
[1768780572855,0.13517673,3284.0,3282.1,0.00217116]
[1768780573648,0.00261357,3284.4,3282.1,0.00217116]
[1768780573855,0.00261357,3284.4,3282.3,0.15238]
[1768780574053,0.00261357,3284.4,3282.1,0.00217116]
[1768780574054,0.00261357,3284.4,3282.5,0.05056445]
[1768780574256,0.13517673,3285.2,3282.5,0.05056445]
[1768780574442,0.13517673,3285.2,3282.9,0.15235]
[1768780574748,0.13517673,3285.2,3282.9,2.94835]
[1768780574947,0.13517673,3285.2,3282.6,40.8]
[1768780575155,0.13845708,3285.2,3282.7,5.841]
[1768780575351,0.13845708,3285.2,3282.6,40.8]
[1768780575550,0.13845708,3285.2,3282.8,2.796]
[1768780575948,0.13845708,3285.2,3282.7,2.797]
[1768780576456,0.13517673,3285.0,3282.5,2.797]
[1768780576851,0.13517673,3284.9,3282.3,40.8]
[1768780577355,0.13517673,3284.2,3282.1,0.00217116]
[1768780577548,0.28746673,3284.2,3282.1,0.00217116]
[1768780577851,0.13517673,3284.0,3282.1,0.00217116]
[1768780578448,0.13517673,3283.8,3282.1,0.00217116]
[1768780580159,0.15232,3283.7,3282.1,0.00217116]
[1768780580356,0.13517673,3283.5,3282.1,0.00217116]
[1768780581949,0.13517673,3283.5,3281.4,40.806095]
[1768780581950,0.13517673,3283.5,3281.4,0.006095]
[1768780582257,0.78975864,3283.8,3280.0,26.16302183]
[1768780582258,0.13517673,3282.4,3280.0,7.05302183]
[1768780582451,0.13517673,3282.4,3280.1,0.15248]
[1768780582651,0.13517673,3282.4,3280.0,7.05302183]
[1768780582859,0.13517673,3282.4,3280.3,0.15247]
[1768780583061,0.13837118,3282.4,3280.3,0.15473415]
[1768780583260,0.13837118,3282.4,3280.3,0.00226415]
[1768780583462,0.14201567,3282.0,3280.3,0.00226415]
[1768780583656,0.14201567,3281.7,3280.3,0.00226415]
[1768780584850,0.14201567,3281.5,3280.0,7.05302183]
[1768780585060,0.14201567,3280.9,3278.0,0.15258]
[1768780585255,0.14201567,3280.9,3278.1,1.96775817]
[1768780585565,0.14201567,3280.9,3278.2,40.8]
[1768780585765,0.78975864,3281.6,3278.2,40.8]
[1768780585766,0.14201567,3280.7,3278.2,40.8]
[1768780585961,0.14201567,3280.7,3278.2,40.80239114]
[1768780586262,0.14201567,3281.3,3279.0,0.22235808]
[1768780586461,0.14201567,3281.3,3279.0,0.15253]
[1768780586661,0.14201567,3281.3,3278.4,0.06982808]
[1768780587064,0.14201567,3281.3,3278.6,0.06972129]
[1768780587260,0.14201567,3282.1,3279.2,0.15252]
[1768780587461,0.14201567,3282.1,3278.8,0.06972129]
[1768780587657,0.14201567,3282.1,3279.4,0.06593117]
[1768780587860,0.00319445,3282.4,3280.1,0.06593117]
[1768780588167,0.14521012,3282.4,3280.6,0.15246]
[1768780588463,0.14521012,3282.4,3280.6,0.15633871]
[1768780588665,0.14521012,3282.4,3280.6,0.00387871]
[1768780589456,0.14521012,3282.4,3280.7,1.4270703]
[1768780589457,0.00319445,3282.4,3280.7,1.4270703]
[1768780589658,0.00319445,3282.4,3280.7,4.71038282]
[1768780589965,0.00319445,3282.4,3280.7,1.4270703]
[1768780590158,0.00319445,3282.4,3280.6,0.15633871]
[1768780590553,0.14521012,3282.4,3280.6,0.00387871]
[1768780591064,0.14521012,3282.4,3280.7,40.8]
[1768780592257,0.14521012,3282.4,3280.6,0.00387871]
[1768780592869,0.14521012,3282.4,3280.7,40.8]
[1768780593166,0.00319445,3282.4,3281.4,0.006095]
[1768780593763,0.14521012,3282.4,3281.4,0.006095]
[1768780593965,0.14201567,3285.3,3282.3,1.4270703]
[1768780594272,0.14201567,3285.3,3282.4,7.2740703]
[1768780594466,0.14201567,3285.1,3282.4,5.847]
[1768780594670,0.14201567,3284.9,3282.4,5.847]
[1768780594871,0.14201567,3284.7,3282.3,0.15238]
[1768780595075,0.14201567,3284.2,3281.5,0.15242]
[1768780595258,0.14201567,3284.0,3281.5,0.15242]
[1768780595567,0.14201567,3284.0,3281.6,0.15241]
[1768780596465,1.56908597,3284.0,3281.4,0.006095]
[1768780596669,0.14201567,3283.8,3281.4,0.006095]
[1768780597171,0.14201567,3283.8,3282.2,1.4270703]
[1768780597377,0.14201567,3284.8,3282.4,0.15237]
[1768780597577,0.14201567,3284.6,3282.4,0.15237]
[1768780597874,0.1380886,3284.4,3281.6,0.15241]
[1768780598074,0.15227,3284.7,3281.8,1.5794703]
[1768780598075,0.1380886,3284.2,3281.8,1.5794703]
[1768780598280,0.1380886,3284.2,3281.9,40.8]
[1768780598575,1.4270703,3283.9,3281.4,0.006095]
[1768780598782,0.1380886,3283.7,3281.4,0.006095]
[1768780599078,0.1380886,3283.5,3281.4,0.006095]
[1768780599277,0.1380886,3282.8,3281.4,0.006095]
[1768780599480,0.1380886,3282.6,3281.4,0.006095]
[1768780599778,0.1380886,3282.4,3280.6,0.00387871]
[1768780600373,0.1380886,3282.4,3280.6,0.15633871]
[1768780601269,0.1380886,3282.4,3280.6,0.00387871]
[1768780603479,0.00265784,3282.6,3280.6,0.00387871]
[1768780603480,0.1380886,3282.2,3280.6,0.00387871]
[1768780603678,0.1380886,3282.0,3280.6,0.00387871]
[1768780603878,0.00265784,3282.6,3280.6,0.00387871]
[1768780603879,0.1380886,3281.8,3280.6,0.00387871]
[1768780604180,0.1380886,3282.4,3280.6,0.00387871]
[1768780605679,0.1380886,3282.2,3280.6,0.00387871]
[1768780605980,0.1380886,3282.0,3280.6,0.00387871]
[1768780606581,0.1380886,3281.8,3280.6,0.00387871]
[1768780607674,0.1380886,3281.6,3279.9,40.8]
[1768780607874,0.1380886,3281.4,3279.9,40.8]
[1768780608472,0.1380886,3281.4,3279.6,0.1525]
[1768780608678,0.1380886,3281.4,3279.6,1.42965355]
[1768780608880,0.1380886,3282.5,3280.3,0.15247]
[1768780609075,0.1380886,3282.3,3280.3,0.15247]
[1768780609382,0.00265784,3282.6,3279.7,1.4270703]
[1768780609383,0.1380886,3282.1,3279.7,1.4270703]
[1768780609583,0.1380886,3282.1,3279.8,40.8]
[1768780609982,0.1380886,3281.9,3279.8,40.8]
[1768780610474,0.1380886,3281.9,3280.1,1.4270703]
[1768780610680,0.1380886,3281.9,3280.3,0.15247]
[1768780612077,0.1380886,3281.9,3280.4,0.15247]
[1768780612687,0.1380886,3281.9,3280.1,1.4270703]
[1768780612688,0.14554655,3282.5,3280.5,0.15246]
[1768780612880,0.14554655,3282.5,3280.6,0.15246]
[1768780613085,0.14554655,3282.5,3280.1,1.4270703]
[1768780613484,0.14554655,3282.5,3280.6,1.4270703]
[1768780613681,0.14554655,3282.5,3281.2,0.15243]
[1768780613985,0.00265784,3282.6,3281.4,0.15242]
[1768780614377,0.00265784,3282.6,3281.5,40.8]
[1768780614974,0.14554655,3283.1,3281.5,40.8]
[1768780615183,0.14554655,3283.9,3281.6,1.4270703]
[1768780615391,0.14554655,3283.9,3282.3,0.15238]
[1768780615683,0.14554655,3283.9,3282.5,0.15237]
[1768780616188,0.1489359,3283.9,3282.5,0.15467883]
[1768780616387,0.1489359,3283.9,3282.5,0.00230883]
[1768780617781,0.1489359,3283.9,3282.7,0.15236]
[1768780618681,0.00338935,3283.9,3282.7,0.15236]
[1768780619583,0.14554655,3284.5,3282.8,0.15236]
[1768780619781,0.14554655,3284.5,3282.9,40.8]
[1768780620487,0.14554655,3284.3,3282.5,0.00230883]
[1768780620892,0.14554655,3283.8,3282.5,0.00230883]
[1768780621093,0.14554655,3283.6,3281.3,3.047]
[1768780621292,0.14554655,3283.6,3278.7,3.04]
[1768780621493,1.4270703,3283.7,3278.3,0.56534115]
[1768780621494,0.14554655,3283.3,3280.3,0.15247]
[1768780621787,0.14554655,3283.1,3280.3,2.95347]
[1768780621991,0.14554655,3283.1,3280.3,2.9563651]
[1768780622289,0.14554655,3283.1,3280.3,2.8038951]
[1768780622487,0.14554655,3283.1,3281.2,1.4270703]
[1768780622986,0.14554655,3282.9,3281.1,0.15244]
[1768780623399,0.14554655,3282.9,3280.3,0.1553651]
[1768780623590,0.14554655,3282.4,3280.3,0.1553651]
[1768780624098,0.14554655,3282.4,3280.6,0.15246]
[1768780625587,0.14554655,3282.4,3280.7,2.803]
[1768780625897,0.14554655,3282.4,3280.5,2.804]
[1768780626392,0.14554655,3282.4,3280.3,0.1553651]
[1768780626589,0.14554655,3282.4,3280.4,2.806]
[1768780626908,0.14554655,3282.4,3280.9,1.4270703]
[1768780627396,0.14554655,3282.4,3280.7,0.15245]
[1768780628587,0.14554655,3282.4,3280.8,0.15245]
[1768780628787,0.14554655,3282.4,3281.0,0.15244]
[1768780629300,0.15232,3283.6,3280.9,1.4270703]
[1768780629493,0.14554655,3283.4,3281.2,0.15243]
[1768780629689,0.14554655,3283.4,3281.3,0.15242]
[1768780629894,0.14554655,3283.4,3281.4,1.4270703]
[1768780630094,0.14554655,3283.4,3281.5,5.042]
[1768780630293,0.14554655,3283.4,3281.6,43.608]
[1768780631993,0.14554655,3283.4,3281.6,43.76041]
[1768780632295,0.14554655,3283.4,3281.6,40.95241]
[1768780632490,0.14554655,3283.2,3281.6,40.95241]
[1768780632797,0.1489359,3283.2,3281.6,40.95241]
[1768780633092,0.14554655,3283.2,3281.6,40.95241]
[1768780633298,0.14554655,3283.2,3281.7,0.15241]
[1768780633485,0.14554655,3284.4,3282.1,1.4270703]
[1768780633684,0.14554655,3284.2,3282.1,1.4270703]
[1768780634300,0.14554655,3284.2,3282.6,1.4270703]
[1768780634495,0.14554655,3284.2,3282.7,2.815]
[1768780634798,0.14554655,3284.2,3282.9,0.15235]
[1768780635392,0.14554655,3284.2,3282.6,0.00359171]
[1768780635701,0.1489359,3284.2,3282.6,40.80359171]
[1768780636099,0.14554655,3283.0,3280.6,0.15246]
[1768780636398,0.14554655,3282.4,3280.7,2.815]
[1768780636591,0.14554655,3282.4,3279.7,0.1525]
[1768780636899,0.14554655,3281.9,3279.1,1.4270703]
[1768780637099,0.14873096,3281.9,3279.2,3.49]
[1768780637397,0.14554655,3281.6,3279.7,1.4270703]
[1768780637791,0.14554655,3281.3,3279.8,2.814]
[1768780637996,0.00338935,3281.2,3279.8,5.861]
[1768780638199,0.14554655,3281.2,3279.8,5.861]
[1768780638704,0.1489359,3281.2,3279.9,5.86]
[1768780638906,0.14554655,3281.2,3279.9,5.86]
[1768780639206,0.00338935,3281.1,3280.0,5.861]
[1768780639405,0.14554655,3281.2,3280.0,5.861]
[1768780639704,0.00338935,3281.1,3280.0,5.861]
[1768780640204,0.00338935,3281.0,3280.1,5.861]
[1768780640403,0.14554655,3281.2,3280.1,5.861]
[1768780640605,0.00338935,3281.0,3280.1,5.861]
[1768780640907,0.00338935,3281.0,3279.4,0.15251]
[1768780641100,0.14554655,3281.8,3280.2,5.86]
[1768780641599,0.14554655,3281.5,3280.3,5.86]
[1768780642007,0.00338935,3281.3,3280.3,5.86]
[1768780642201,0.14554655,3281.5,3280.3,5.86]
[1768780642404,0.00318441,3281.9,3280.3,5.86]
[1768780642605,0.00318441,3281.9,3280.7,1.4270703]
[1768780642906,0.19808469,3281.9,3280.8,5.859]
[1768780643405,0.19808469,3281.9,3280.2,0.15247]
[1768780643608,0.19808469,3281.9,3280.9,2.811]
[1768780643810,0.00318441,3281.9,3280.9,2.811]
[1768780644109,0.19490028,3282.6,3281.0,5.859]
[1768780644312,0.34722028,3283.7,3281.0,5.859]
[1768780644507,0.19490028,3283.2,3280.8,1.4270703]
[1768780644704,0.19490028,3283.2,3281.1,2.165]
[1768780644910,0.19490028,3283.2,3281.3,1.4270703]
[1768780645210,0.19856225,3283.2,3281.3,1.4270703]
[1768780646512,0.19856225,3283.2,3281.4,5.857]
[1768780646702,0.19856225,3283.2,3281.5,5.857]
[1768780647002,0.19856225,3283.2,3281.4,0.0024616]
[1768780647210,0.19856225,3283.2,3281.6,2.809]
[1768780647508,0.19856225,3283.2,3281.7,5.856]
[1768780647807,0.19490028,3283.8,3281.8,1.5794703]
[1768780648005,0.19490028,3283.8,3282.3,1.4270703]
[1768780648206,0.19490028,3284.7,3282.3,1.4270703]
[1768780648410,0.19490028,3284.7,3282.5,0.15237]
[1768780648809,0.19706188,3284.7,3282.5,0.15237]
[1768780649009,0.19490028,3284.5,3281.8,1.4270703]
[1768780649206,0.19490028,3284.0,3282.6,3.048]
[1768780649401,0.19490028,3284.0,3281.9,0.1524]
[1768780649604,0.19490028,3284.0,3281.1,0.10096407]
[1768780649605,0.19490028,3284.6,3282.3,1.4270703]
[1768780650022,0.20147404,3284.4,3282.4,5.855]
[1768780650205,0.19490028,3284.1,3281.5,1.4270703]
[1768780650410,0.19490028,3284.1,3281.6,5.854]
[1768780650611,0.19490028,3283.7,3281.6,5.854]
[1768780650814,0.19490028,3283.7,3281.4,0.1548816]
[1768780651018,0.19490028,3283.5,3281.5,4.518]
[1768780651317,0.19490028,3283.5,3281.6,5.854]
[1768780651520,0.19490028,3283.1,3281.6,5.854]
[1768780652017,0.00657376,3282.9,3281.6,5.854]
[1768780652419,0.19490028,3282.8,3281.4,0.0024616]
[1768780652606,0.19490028,3282.6,3281.4,0.0024616]
[1768780653013,0.00657376,3282.5,3281.4,0.0024616]
[1768780653616,0.19490028,3282.6,3281.4,0.0024616]
[1768780654017,0.00657376,3282.3,3281.5,3.048]
[1768780654219,0.00974781,3282.3,3281.5,3.048]
[1768780654426,0.20147404,3281.7,3281.4,0.0024616]
[1768780654915,0.00657376,3281.5,3281.4,0.0024616]
[1768780655318,0.19807433,3282.3,3281.4,0.0024616]
[1768780656126,0.19807433,3282.3,3280.9,3.048]
[1768780656324,0.19807433,3282.3,3280.4,0.15247]
[1768780656520,0.19807433,3282.3,3280.5,5.851]
[1768780657119,0.19807433,3282.3,3280.5,5.85363986]
[1768780658019,0.19807433,3282.3,3280.5,0.00263986]
[1768780658327,0.19807433,3282.3,3280.6,5.737]
[1768780658727,0.19807433,3282.3,3280.6,0.15246]
[1768780658929,0.19807433,3282.3,3280.7,5.849]
[1768780659139,0.19807433,3282.3,3280.8,5.849]
[1768780659627,0.19807433,3282.3,3280.9,3.048]
[1768780660218,0.19807433,3282.3,3280.5,0.00263986]
[1768780660414,0.19807433,3282.3,3280.6,4.339]
[1768780661633,0.1849426,3282.1,3280.5,0.00263986]
[1768780662538,0.1849426,3281.9,3280.5,0.00263986]
[1768780662935,0.98688682,3281.8,3280.5,0.00263986]
[1768780663234,0.1849426,3281.7,3280.5,0.00263986]
[1768780664636,0.18811665,3282.3,3280.6,3.048]
[1768780669339,0.18811665,3282.3,3280.5,0.15509986]
[1768780669643,0.1849426,3282.0,3280.6,3.048]
[1768780669831,0.1849426,3282.0,3280.7,3.048]
[1768780671135,0.1849426,3282.0,3280.5,0.00263986]
[1768780671839,0.1849426,3281.8,3280.5,0.00263986]
[1768780672039,0.3373526,3281.8,3280.5,0.00263986]
[1768780672236,0.1849426,3281.6,3280.5,0.00263986]
[1768780672449,0.17320474,3282.3,3280.5,0.00263986]
[1768780672747,0.17320474,3282.3,3280.6,2.793]
[1768780672937,0.17320474,3282.3,3280.5,0.00263986]
[1768780673333,0.17003069,3282.1,3280.5,0.00263986]
[1768780673538,0.17003069,3281.9,3280.5,0.00263986]
[1768780673945,0.17003069,3281.7,3280.5,0.00263986]
[1768780680240,0.00317405,3282.3,3279.2,3.049]
[1768780680241,0.17003069,3281.3,3279.2,3.049]
[1768780680442,0.17003069,3281.1,3279.2,3.049]
[1768780680646,0.94565696,3281.3,3278.1,0.07599857]
[1768780680647,0.17003069,3280.9,3278.6,0.15255]
[1768780680841,0.17003069,3280.7,3277.9,0.15258]
[1768780681039,0.17003069,3280.5,3277.9,0.15258]
[1768780681241,0.17003069,3280.5,3278.0,8.9203]
[1768780681442,0.17003069,3280.5,3278.1,5.837]
[1768780681643,0.17003069,3280.5,3277.9,0.15477876]
[1768780681843,0.17003069,3280.3,3278.2,5.837]
[1768780682244,0.17003069,3280.3,3278.5,0.15255]
[1768780682746,0.17003069,3280.3,3278.6,5.836]
[1768780683550,0.17003069,3281.0,3278.7,0.15255]
[1768780683741,0.79497149,3281.1,3278.7,0.15255]
[1768780683742,0.17003069,3280.8,3278.7,0.15255]
[1768780685349,0.17003069,3280.8,3278.8,3.049]
[1768780685549,0.17003069,3280.6,3278.8,3.049]
[1768780685948,0.17003069,3280.6,3278.1,3.41889839]
[1768780685949,0.17003069,3280.4,3278.1,0.15257]
[1768780686350,0.17003069,3280.4,3278.2,5.835]
[1768780686746,0.17003069,3280.4,3278.3,0.0688087]
[1768780686947,1.58613622,3281.4,3278.5,0.0688087]
[1768780686948,0.17003069,3281.0,3278.5,0.0688087]
[1768780687448,0.17003069,3281.0,3278.6,8.3543513]
[1768780688046,0.17003069,3281.0,3279.2,0.15252]
[1768780688253,0.17003069,3280.8,3278.8,3.049]
[1768780688552,0.17003069,3280.6,3278.8,3.049]
[1768780688853,0.17003069,3280.4,3278.9,3.049]
[1768780691352,0.17003069,3281.1,3278.9,3.20154]
[1768780691559,0.17003069,3281.1,3279.0,0.15253]
[1768780692243,0.17003069,3281.1,3279.1,3.049]
[1768780692459,0.98640127,3281.0,3279.2,3.049]
[1768780692651,0.17003069,3281.2,3279.2,3.049]
[1768780693246,0.17003069,3281.2,3279.4,0.15251]
[1768780694151,0.17003069,3282.2,3279.4,0.15251]
[1768780694351,0.17003069,3282.0,3279.4,0.15251]
[1768780694651,0.17003069,3282.0,3279.5,3.21504341]
[1768780694851,0.17003069,3282.0,3280.1,0.15248]
[1768780695057,0.00317405,3282.3,3279.6,0.04991528]
[1768780695258,0.17320474,3282.3,3279.6,0.04991528]
[1768780695449,0.17003069,3282.1,3279.7,3.36438711]
[1768780695649,0.17003069,3281.9,3279.8,2.78]
[1768780696647,0.17003069,3281.9,3279.8,2.9325]
[1768780696850,0.17003069,3281.9,3279.9,0.15249]
[1768780697254,0.17003069,3281.7,3279.1,0.15253]
[1768780697463,0.17003069,3281.5,3279.2,5.81252]
[1768780697664,0.17003069,3281.5,3279.3,3.049]
[1768780697964,0.17003069,3282.2,3280.0,0.15249]
[1768780698166,0.17003069,3282.2,3280.1,0.15248]
[1768780698459,0.17003069,3282.2,3280.2,0.15248]
[1768780698652,0.17003069,3282.2,3280.3,0.15247]
[1768780699959,0.17003069,3282.2,3280.6,0.15246]
[1768780701163,0.00317405,3282.3,3281.0,0.15244]
[1768780701362,0.17003069,3282.8,3281.1,5.826]
[1768780702354,0.17301151,3282.8,3281.1,5.826]
[1768780702965,0.17301151,3282.8,3281.2,3.049]
[1768780704364,0.00298082,3282.8,3281.2,3.049]
[1768780704568,0.00298082,3282.8,3281.4,0.15242]
[1768780707370,0.00298082,3282.8,3281.2,3.049]
[1768780707668,0.1622145,3283.4,3281.9,0.1524]
[1768780707973,0.15226,3285.0,3282.0,0.15239]
[1768780708165,0.1622145,3284.6,3281.5,0.15242]
[1768780708474,0.1622145,3284.1,3281.6,5.82]
[1768780708778,0.1622145,3284.1,3281.5,0.15242]
[1768780708779,0.1622145,3283.8,3280.8,0.15245]
[1768780708983,0.1622145,3283.3,3280.8,0.15245]
[1768780709278,0.1622145,3283.3,3280.9,5.819]
[1768780709667,0.1622145,3282.8,3281.0,3.048]
[1768780710463,0.1622145,3282.8,3281.1,5.818]
[1768780710671,0.1622145,3282.8,3281.1,5.97043]
[1768780711073,0.1622145,3282.8,3281.3,0.15243]
[1768780711378,0.1622145,3284.2,3281.5,0.15242]
[1768780712069,0.1622145,3284.2,3281.6,5.817]
[1768780712865,0.1622145,3284.2,3281.8,1.42581022]
[1768780713271,0.1622145,3284.2,3281.8,1.57821022]
[1768780713478,0.1622145,3284.2,3282.8,1.42581022]
[1768780713677,0.1622145,3284.2,3282.8,1.42918278]
[1768780714264,0.00263391,3284.6,3282.9,0.15235]
[1768780714675,0.1683025,3285.4,3283.8,1.42581022]
[1768780714872,0.1683025,3285.4,3283.2,0.15234]
[1768780714873,0.1683025,3285.4,3283.3,1.42581022]
[1768780715072,0.1683025,3285.4,3283.4,4.465]
[1768780715674,0.17194442,3285.4,3283.4,4.465]
[1768780715971,0.17194442,3285.4,3282.9,1.42581022]
[1768780716163,0.17194442,3285.4,3283.0,5.729]
[1768780716368,0.17194442,3285.4,3282.9,1.42581022]
[1768780716565,0.17194442,3285.4,3283.1,2.766]
[1768780716972,0.17194442,3285.4,3283.4,1.42581022]
[1768780717877,0.17194442,3285.4,3283.1,2.766]
[1768780719476,0.17194442,3285.4,3283.5,1.42581022]
[1768780721076,0.17194442,3285.4,3283.6,5.81]
[1768780721883,0.17194442,3285.4,3283.7,5.809]
[1768780722583,0.17194442,3285.4,3283.7,7.23481022]
[1768780723676,0.17194442,3285.4,3283.8,3.046]
[1768780724481,0.17194442,3285.4,3283.9,1.42581022]
[1768780726580,0.17194442,3285.4,3284.0,5.805]
[1768780726978,0.17194442,3285.4,3283.4,1.42581022]
[1768780727184,0.17194442,3285.4,3283.5,2.707]
[1768780727484,0.17194442,3285.4,3283.5,5.753]